fUST/lending_fUST_20240704
["ID","MTS","AMOUNT","RATE_DAILY","PERIOD"]
[331150169,1720107045870,-500.0,0.00013972,2]
[331150170,1720107045879,-500.0,0.00013972,2]
[331150171,1720107045889,-612.56,0.00013972,2]
[331150172,1720107045899,-1075.91,0.00013972,2]
[331150173,1720107045909,-500.0,0.00013972,2]
[331150174,1720107045918,-2488.78,0.00013972,2]
[331150175,1720107045928,-500.0,0.00013972,2]
[331150176,1720107045937,-500.0,0.00013972,2]
[331150177,1720107045946,-500.0,0.00013972,2]
[331150178,1720107045956,-500.0,0.00013972,2]
[331150179,1720107045965,-500.0,0.00013972,2]
[331150180,1720107045975,-500.0,0.00013972,2]
[331150181,1720107045984,-3206.19,0.00013972,2]
[331150182,1720107045994,-500.0,0.00013972,2]
[331150183,1720107046003,-531.84144102,0.00013972,2]
[331150184,1720107046013,-1711.82,0.00013972,2]
[331150186,1720107046023,-500.0,0.00013972,2]
[331150187,1720107046033,-500.0,0.00013972,2]
[331150188,1720107046042,-333.094956,0.00013972,2]
[331150189,1720107046051,-333.094956,0.00013972,2]
[331150190,1720107046061,-500.0,0.00013972,2]
[331150191,1720107046071,-333.094956,0.00013972,2]
[331150192,1720107046080,-333.094956,0.00013972,2]
[331150193,1720107046089,-500.0,0.00013972,2]
[331150194,1720107046098,-500.0,0.00013972,2]
[331150195,1720107046108,-500.0,0.00013972,2]
[331150196,1720107046117,-259.87134274,0.00013972,2]
[331150197,1720107046131,-173.409106,0.00013972,2]
[331150198,1720107046140,-173.409106,0.00013972,2]
[331150199,1720107046148,-1188.03,0.00013972,2]
[331150200,1720107046157,-500.0,0.00013972,2]
[331150201,1720107046166,-512.93308563,0.00013972,2]
[331150202,1720107046175,-173.409106,0.00013972,2]
[331150203,1720107046184,-173.409106,0.00013972,2]
[331150204,1720107046193,-196.83503195,0.00013972,2]
[331150205,1720107046202,-1364.36979164,0.00013972,2]
[331150206,1720107046216,-76.20020836,0.00013972,2]
[331150207,1720107046226,-533.04,0.00013972,2]
[331150208,1720107046237,-500.0,0.00013972,2]
[331150209,1720107046247,-151.0,0.00013972,2]
[331150210,1720107046256,-151.0,0.00013972,2]
[331150211,1720107046266,-151.0,0.00013972,2]
[331150212,1720107046280,-500.0,0.00013972,2]
[331150213,1720107046290,-500.0,0.00013972,2]
[331150214,1720107046299,-6121.79,0.00013972,2]
[331150215,1720107046309,-500.0,0.00013972,2]
[331150216,1720107046319,-500.0,0.00013972,2]
[331150217,1720107046328,-828.52,0.00013972,2]
[331150218,1720107046338,-500.0,0.00013972,2]
[331150219,1720107046347,-500.0,0.00013972,2]
[331150220,1720107046356,-500.0,0.00013972,2]
[331150221,1720107046368,-3147.21,0.00013972,2]
[331150222,1720107046378,-982.618677,0.00013972,2]
[331150223,1720107046388,-982.618677,0.00013972,2]
[331150224,1720107046397,-500.0,0.00013972,2]
[331150225,1720107046406,-982.618677,0.00013972,2]
[331150226,1720107046416,-982.618677,0.00013972,2]
[331150227,1720107046425,-500.0,0.00013972,2]
[331150228,1720107046434,-164.85005219,0.00013972,2]
[331150229,1720107046660,-451.83994781,0.00013972,2]
[331150230,1720107046669,-500.0,0.00013972,2]
[331150231,1720107046678,-500.0,0.00013972,2]
[331150232,1720107046687,-500.0,0.00013972,2]
[331150233,1720107046696,-304.44703318,0.00013972,2]
[331150234,1720107046796,-500.0,0.00013972,2]
[331150237,1720107046806,-575.26092211,0.00013972,2]
[331150239,1720107046815,-17896.7015972,0.00013972,2]
[331150241,1720107046827,-570.3984028,0.00013972,2]
[331150243,1720107046836,-450.43159597,0.00013972,2]
[331150262,1720107047551,-500.0,0.00013698,2]
[331150263,1720107047560,-153.0,0.00013895,2]
[331150264,1720107047571,-49.56840403,0.00013972,2]
[331150265,1720107047580,-500.0,0.00013972,2]
[331150266,1720107047589,-500.0,0.00013972,2]
[331150267,1720107047598,-500.0,0.00013972,2]
[331150268,1720107047607,-500.0,0.00013972,2]
[331150269,1720107047616,-151.0,0.00013972,2]
[331150270,1720107047625,-151.0,0.00013972,2]
[331150271,1720107047634,-500.0,0.00013972,2]
[331150272,1720107047643,-500.0,0.00013972,2]
[331150273,1720107047653,-1898.15,0.00013972,2]
[331150274,1720107047662,-500.0,0.00013972,2]
[331150275,1720107047671,-511.34431023,0.00013972,2]
[331150276,1720107047680,-188.38355862,0.00013972,2]
[331150277,1720107047691,-311.61644138,0.00013972,2]
[331150278,1720107047701,-3319.53,0.00013972,2]
[331150279,1720107047710,-500.0,0.00013972,2]
[331150280,1720107047719,-430.927637,0.00013972,2]
[331150281,1720107047729,-430.927637,0.00013972,2]
[331150282,1720107047738,-604.95,0.00013972,2]
[331150283,1720107047747,-430.927637,0.00013972,2]
[331150284,1720107047756,-430.927637,0.00013972,2]
[331150285,1720107047766,-500.0,0.00013972,2]
[331150286,1720107047775,-1394.97,0.00013972,2]
[331150287,1720107047784,-411.83538762,0.00013972,2]
[331150288,1720107047794,-500.0,0.00013972,2]
[331150289,1720107047803,-1309.45,0.00013972,2]
[331150290,1720107047814,-500.0,0.00013972,2]
[331150291,1720107047823,-1126.57,0.00013972,2]
[331150292,1720107047832,-5861.32,0.00013972,2]
[331150293,1720107047842,-822.03,0.00013972,2]
[331150294,1720107047850,-472.18162335,0.00013972,2]
[331150295,1720107047860,-500.0,0.00013972,2]
[331150296,1720107047869,-141.83599965,0.00013972,2]
[331150297,1720107047893,-1240.09400035,0.00013972,2]
[331150298,1720107047903,-309.7057795,0.00014,2]
[331150299,1720107047911,-151.0,0.00014046,2]
[331150300,1720107047921,-503.49931515,0.00014046,2]
[331150301,1720107047935,-479.11936185,0.00014046,2]
[331150302,1720107047944,-982.618677,0.00014046,2]
[331150303,1720107047954,-151.0,0.00014046,2]
[331150304,1720107047962,-430.927637,0.00014046,2]
[331150305,1720107047972,-430.927637,0.00014046,2]
[331150306,1720107047981,-11733.69165558,0.00014046,2]
[331150307,1720107047991,-1513.02,0.00014051,2]
[331150308,1720107048001,-333.094956,0.00014051,2]
[331150309,1720107048011,-333.094956,0.00014051,2]
[331150310,1720107048020,-173.409106,0.00014051,2]
[331150311,1720107048030,-173.409106,0.00014051,2]
[331150312,1720107048040,-5918.02425561,0.00014054,2]
[331150313,1720107048051,-5426.36929353,0.00014054,2]
[331150314,1720107048063,-625.13212042,0.00014054,2]
[331150315,1720107108579,944.81048405,9.999e-05,2]
[331150316,1720107152791,528.76178297,9.999e-05,2]
[331150324,1720107411655,257.17296595,9.999e-05,2]
[331150329,1720107453470,565.90871239,9.999e-05,2]
[331150337,1720107565833,3769.18827951,9.999e-05,2]
[331150338,1720107566744,155.47216477,9.999e-05,2]
[331150339,1720107567079,208.00273845,9.999e-05,2]
[331150340,1720107569573,4696.33537857,9.999e-05,2]
[331150341,1720107571171,659.88884751,9.999e-05,2]
[331150343,1720107574467,525.021528,9.999e-05,2]
[331150344,1720107575085,726.68067841,9.999e-05,2]
[331150345,1720107575125,406.02029299,9.999e-05,2]
[331150346,1720107575743,159.50203201,9.999e-05,2]
[331150348,1720107585384,329.06228782,9.999e-05,2]
[331150349,1720107588630,2099.6884772,9.999e-05,2]
[331150350,1720107589037,156.33631993,9.999e-05,2]
[331150351,1720107596696,176.30685021,9.999e-05,2]
[331150355,1720107631210,154.89931544,9.999e-05,2]
[331150356,1720107644991,154.89931544,9.999e-05,2]
[331150357,1720107659068,209.46557406,9.999e-05,2]
[331150358,1720107695829,457.45943987,9.999e-05,2]
[331150360,1720107703247,166.31746247,9.999e-05,2]
[331150361,1720107712898,510.0379586,9.999e-05,2]
[331150362,1720107716388,158.15295875,9.999e-05,2]
[331150363,1720107717387,154.89931544,9.999e-05,2]
[331150364,1720107719709,163.76989843,9.999e-05,2]
[331150365,1720107722653,179.92668839,9.999e-05,2]
[331150366,1720107724479,154.89931544,9.999e-05,2]
[331150367,1720107726741,154.89931544,9.999e-05,2]
[331150368,1720107729096,402.64531294,9.999e-05,2]
[331150369,1720107729137,992.03627966,9.999e-05,2]
[331150370,1720107730725,155.17941616,9.999e-05,2]
[331150371,1720107731868,155.87822743,9.999e-05,2]
[331150372,1720107735030,155.83277854,9.999e-05,2]
[331150373,1720107735074,158.57838286,9.999e-05,2]
[331150374,1720107735976,661.12832609,9.999e-05,2]
[331150375,1720107737163,180.50662285,9.999e-05,2]
[331150376,1720107737308,8165.09065975,9.999e-05,2]
[331150377,1720107737347,299.51409041,9.999e-05,2]
[331150378,1720107742705,278.51368597,9.999e-05,2]
[331150379,1720107742746,155.72644721,0.0001,2]
[331150380,1720107742786,159.35965211,9.999e-05,2]
[331150381,1720107744290,164.85188126,9.999e-05,2]
[331150382,1720107749943,318.0694556,9.999e-05,2]
[331150383,1720107751235,286.39912426,9.999e-05,2]
[331150385,1720107754555,205.49030475,9.999e-05,2]
[331150386,1720107758915,269.37897066,9.999e-05,2]
[331150387,1720107765178,195.47966853,9.999e-05,2]
[331150389,1720107767125,723.95900882,9.999e-05,2]
[331150390,1720107770691,216.810215,9.999e-05,2]
[331150392,1720107776400,208.37564863,9.999e-05,2]
[331150394,1720107782110,179.54081427,9.999e-05,2]
[331150395,1720107787546,565.90871239,9.999e-05,2]
[331150397,1720107791278,222.56319598,9.999e-05,2]
[331150398,1720107791321,516.9453028,9.999e-05,2]
[331150399,1720107797637,292.99777244,9.999e-05,2]
[331150400,1720107797829,373.78265909,9.999e-05,2]
[331150401,1720107803137,154.89931544,9.999e-05,2]
[331150403,1720107813895,209.80404834,9.999e-05,2]
[331150404,1720107816947,205.69286566,9.999e-05,2]
[331150405,1720107817893,154.89931544,9.999e-05,2]
[331150408,1720107833380,159.07978904,9.999e-05,2]
[331150409,1720107835806,158.57838286,9.999e-05,2]
[331150410,1720107836986,154.89931544,9.999e-05,2]
[331150411,1720107837119,992.03627966,9.999e-05,2]
[331150417,1720107843709,176.00680323,9.999e-05,2]
[331150418,1720107848445,154.99225039,9.999e-05,2]
[331150420,1720107855240,194.08700414,9.999e-05,2]
[331150421,1720107886949,344.98961657,9.999e-05,2]
[331150422,1720107922012,196.75169249,9.999e-05,2]
[331150423,1720107933104,154.91479686,9.999e-05,2]
[331150424,1720107935430,208.83961786,9.999e-05,2]
[331150425,1720107936556,230.79868182,9.999e-05,2]
[331150426,1720107943118,992.03627966,9.999e-05,2]
[331150429,1720107963689,282.93616103,9.999e-05,2]
[331150430,1720107982092,207.71530322,9.999e-05,2]
[331150432,1720107991332,525.15058408,9.999e-05,2]
[331150434,1720107997485,154.91479686,9.999e-05,2]
[331150437,1720108025246,992.03627966,9.999e-05,2]
[331150438,1720108025979,154.93028137,9.999e-05,2]
[331150446,1720108041097,154.93028137,9.999e-05,2]
[331150471,1720108052109,154.93028137,9.999e-05,2]
[331150472,1720108061025,1000.0,0.00022,30]
[331150473,1720108081987,1000.0,0.00024,60]
[331150474,1720108091498,155.00772252,9.999e-05,2]
[331150475,1720108091931,309.84514014,9.999e-05,2]
[331150476,1720108092339,293.07960701,9.999e-05,2]
[331150477,1720108111089,1000.0,0.0002,30]
[331150479,1720108128644,24900.0,0.00011293,2]
[331150480,1720108134138,992.03627966,9.999e-05,2]
[331150481,1720108146979,155.1210509,9.999e-05,2]
[331150482,1720108157713,164.49158165,0.00011293,2]
[331150541,1720108171214,154.94576898,9.999e-05,2]
[331150542,1720108177242,-300.0,0.00012018,2]
[331150543,1720108177273,-300.0,0.00012018,2]
[331150544,1720108177302,-276.30436604,0.00012019,2]
[331150545,1720108177348,-876.30436604,0.00012019,2]
[331150546,1720108177390,-876.30436604,0.00012019,2]
[331150547,1720108177432,-190.45960035,0.00012019,2]
[331150548,1720108202062,-155.54073972,0.00012018,2]
[331150549,1720108202119,-144.45926028,0.00012018,2]
[331150550,1720108202150,-788.23255973,0.00012019,2]
[331150551,1720108202185,-932.69182001,0.00012019,2]
[331150555,1720108229146,992.03627966,9.999e-05,2]
[331150580,1720108233619,-300.0,0.00012018,2]
[331150581,1720108233633,-8439.39508762,0.00012019,2]
[331150582,1720108233654,-545.87563572,0.00012019,2]
[331150603,1720108239019,-39955.47219083,0.00012019,2]
[331150605,1720108239035,-882.528492,0.00012019,2]
[331150606,1720108239051,-11609.75415908,0.00012019,2]
[331150607,1720108239068,-3994.48059172,0.00012019,2]
[331150608,1720108239092,-17148.01567846,0.00012019,2]
[331150609,1720108239106,-7402.77695997,0.0001202,2]
[331150611,1720108239119,-2061.3245497,0.00012351,2]
[331150612,1720108239132,-24811.0680381,0.00012681,2]
[331150613,1720108239145,-506.2257381,0.00013,2]
[331150614,1720108239158,-8255.82903871,0.0001312,2]
[331150615,1720108239171,-420.0,0.0001322,2]
[331150616,1720108239184,-8255.82903869,0.0001324,2]
[331150617,1720108239196,-24811.0680381,0.00013349,2]
[331150618,1720108239208,-8255.82903869,0.00013359,2]
[331150619,1720108239220,-620.00752323,0.00013445,2]
[331150620,1720108239234,-8255.82903869,0.00013479,2]
[331150621,1720108239247,-8255.82903869,0.00013598,2]
[331150622,1720108239259,-1155.82221337,0.00013598,2]
[331150623,1720108239270,-2000.0,0.00013598,2]
[331150624,1720108239282,-173677.476266,0.00013688,2]
[331150625,1720108239293,-500.0,0.00013698,2]
[331150626,1720108239305,-511.90257238,0.00013698,2]
[331150627,1720108239317,-306.94192836,0.00013698,2]
[331150628,1720108239330,-501.42338525,0.00013698,2]
[331150629,1720108239344,-502.92117065,0.00013698,2]
[331150630,1720108239356,-614.92457479,0.00013698,2]
[331150631,1720108239367,-502.66788275,0.00013698,2]
[331150632,1720108239379,-503.51893587,0.00013698,2]
[331150633,1720108239391,-500.0,0.00013698,2]
[331150634,1720108239403,-504.66005101,0.00013698,2]
[331150635,1720108239415,-500.0,0.00013698,2]
[331150636,1720108239427,-831.07,0.00013698,2]
[331150637,1720108239440,-513.70518318,0.00013698,2]
[331150638,1720108239451,-502.93339657,0.00013698,2]
[331150639,1720108239463,-500.0,0.00013698,2]
[331150640,1720108239476,-500.0,0.00013698,2]
[331150641,1720108239488,-500.0,0.00013698,2]
[331150642,1720108239500,-724.57,0.00013698,2]
[331150643,1720108239512,-500.0,0.00013698,2]
[331150644,1720108239524,-541.16192918,0.00013698,2]
[331150645,1720108239536,-502.96558748,0.00013698,2]
[331150646,1720108239548,-500.0,0.00013698,2]
[331150647,1720108239559,-169.57752147,0.00013698,2]
[331150648,1720108239571,-158.43158505,0.00013698,2]
[331150649,1720108239583,-500.0,0.00013698,2]
[331150650,1720108239596,-500.0,0.00013698,2]
[331150651,1720108239608,-500.0,0.00013698,2]
[331150652,1720108239619,-500.0,0.00013698,2]
[331150653,1720108239631,-500.0,0.00013698,2]
[331150654,1720108239643,-500.0,0.00013698,2]
[331150655,1720108239655,-503.16489389,0.00013698,2]
[331150656,1720108239672,-500.0,0.00013698,2]
[331150657,1720108239683,-500.0,0.00013698,2]
[331150658,1720108239695,-500.0,0.00013698,2]
[331150659,1720108239707,-500.0,0.00013698,2]
[331150660,1720108239718,-500.0,0.00013698,2]
[331150661,1720108239730,-504.4939679,0.00013698,2]
[331150663,1720108239744,-500.0,0.00013698,2]
[331150664,1720108239756,-500.0,0.00013698,2]
[331150665,1720108239767,-500.0,0.00013698,2]
[331150666,1720108239779,-500.0,0.00013698,2]
[331150667,1720108239790,-500.0,0.00013698,2]
[331150668,1720108239802,-502.00979454,0.00013698,2]
[331150669,1720108239813,-500.0,0.00013698,2]
[331150670,1720108239825,-292.33548338,0.00013698,2]
[331150671,1720108239837,-503.16572346,0.00013698,2]
[331150672,1720108239849,-505.32110935,0.00013698,2]
[331150673,1720108239861,-630.57461826,0.00013698,2]
[331150674,1720108239874,-500.0,0.00013698,2]
[331150675,1720108239885,-503.90733195,0.00013698,2]
[331150676,1720108239898,-500.0,0.00013698,2]
[331150677,1720108239910,-500.0,0.00013698,2]
[331150678,1720108239921,-517.61177439,0.00013698,2]
[331150679,1720108239933,-500.0,0.00013698,2]
[331150680,1720108239944,-500.0,0.00013698,2]
[331150686,1720108240116,-500.0,0.00013698,2]
[331150687,1720108240135,-216.85297782,0.00013698,2]
[331150688,1720108240144,-500.0,0.00013698,2]
[331150689,1720108240154,-500.0,0.00013698,2]
[331150690,1720108240163,-500.0,0.00013698,2]
[331150691,1720108240173,-500.0,0.00013698,2]
[331150692,1720108240182,-500.0,0.00013698,2]
[331150693,1720108240191,-500.0,0.00013698,2]
[331150694,1720108240201,-514.7034435,0.00013698,2]
[331150695,1720108240210,-500.0,0.00013698,2]
[331150696,1720108240219,-500.0,0.00013698,2]
[331150697,1720108240228,-500.0,0.00013698,2]
[331150698,1720108240238,-500.0,0.00013698,2]
[331150699,1720108240248,-504.77945916,0.00013698,2]
[331150700,1720108240257,-11900.66,0.00013698,2]
[331150701,1720108240267,-500.0,0.00013698,2]
[331150703,1720108240277,-500.0,0.00013698,2]
[331150704,1720108240286,-500.0,0.00013698,2]
[331150705,1720108240295,-500.0,0.00013698,2]
[331150706,1720108240305,-198.20603358,0.00013698,2]
[331150707,1720108240314,-500.0,0.00013698,2]
[331150708,1720108240324,-500.0,0.00013698,2]
[331150709,1720108240333,-500.0,0.00013698,2]
[331150711,1720108240344,-570.9,0.00013698,2]
[331150712,1720108240353,-500.0,0.00013698,2]
[331150713,1720108240363,-500.0,0.00013698,2]
[331150714,1720108240373,-500.0,0.00013698,2]
[331150715,1720108240382,-504.04495603,0.00013698,2]
[331150716,1720108240392,-805.71,0.00013698,2]
[331150717,1720108240401,-805.71,0.00013698,2]
[331150718,1720108240411,-805.71,0.00013698,2]
[331150719,1720108240420,-805.71,0.00013698,2]
[331150720,1720108240429,-805.71,0.00013698,2]
[331150721,1720108240438,-805.71,0.00013698,2]
[331150722,1720108240448,-805.71,0.00013698,2]
[331150723,1720108240457,-805.71,0.00013698,2]
[331150725,1720108240467,-805.71,0.00013698,2]
[331150727,1720108240476,-1266.77,0.00013698,2]
[331150728,1720108240485,-500.0,0.00013698,2]
[331150730,1720108240495,-500.0,0.00013698,2]
[331150732,1720108240504,-500.0,0.00013698,2]
[331150733,1720108240514,-295.83298247,0.00013698,2]
[331150735,1720108240523,-500.0,0.00013698,2]
[331150736,1720108240533,-500.0,0.00013698,2]
[331150738,1720108240543,-500.0,0.00013698,2]
[331150740,1720108240552,-230.64,0.00013698,2]
[331150741,1720108240564,-500.0,0.00013698,2]
[331150742,1720108240574,-503.76471199,0.00013698,2]
[331150743,1720108240583,-501.14042304,0.00013698,2]
[331150744,1720108240595,-500.0,0.00013698,2]
[331150745,1720108240604,-500.0,0.00013698,2]
[331150746,1720108240614,-500.0,0.00013698,2]
[331150747,1720108240623,-500.0,0.00013698,2]
[331150748,1720108240633,-500.0,0.00013698,2]
[331150749,1720108240643,-504.09428953,0.00013698,2]
[331150750,1720108240657,-240.95,0.00013698,2]
[331150752,1720108240672,-500.0,0.00013698,2]
[331150753,1720108240682,-500.0,0.00013698,2]
[331150754,1720108240691,-1707.27,0.00013698,2]
[331150755,1720108240704,-500.0,0.00013698,2]
[331150756,1720108240713,-500.0,0.00013698,2]
[331150757,1720108240723,-500.0,0.00013698,2]
[331150758,1720108240732,-500.0,0.00013698,2]
[331150760,1720108240742,-500.0,0.00013698,2]
[331150761,1720108240753,-176.26043966,0.00013698,2]
[331150763,1720108240764,-500.0,0.00013698,2]
[331150764,1720108240775,-500.0,0.00013698,2]
[331150765,1720108240785,-503.28794305,0.00013698,2]
[331150766,1720108240796,-500.0,0.00013698,2]
[331150767,1720108240807,-500.0,0.00013698,2]
[331150768,1720108240818,-786.47,0.00013698,2]
[331150769,1720108240829,-500.0,0.00013698,2]
[331150770,1720108240842,-330.84007039,0.00013698,2]
[331150771,1720108240852,-503.45390631,0.00013698,2]
[331150772,1720108240861,-500.0,0.00013698,2]
[331150773,1720108240873,-500.0,0.00013698,2]
[331150774,1720108240883,-500.0,0.00013698,2]
[331150775,1720108240893,-500.0,0.00013698,2]
[331150776,1720108240903,-500.0,0.00013698,2]
[331150777,1720108240912,-500.0,0.00013698,2]
[331150778,1720108240922,-392.40600233,0.00013698,2]
[331150779,1720108240931,-500.0,0.00013698,2]
[331150780,1720108240941,-500.0,0.00013698,2]
[331150781,1720108240951,-500.0,0.00013698,2]
[331150782,1720108240961,-512.7,0.00013698,2]
[331150783,1720108240971,-500.0,0.00013698,2]
[331150784,1720108240981,-501.99186785,0.00013698,2]
[331150785,1720108240990,-500.0,0.00013698,2]
[331150786,1720108241000,-500.0,0.00013698,2]
[331150787,1720108241009,-500.0,0.00013698,2]
[331150788,1720108241019,-500.0,0.00013698,2]
[331150789,1720108241028,-500.0,0.00013698,2]
[331150790,1720108241037,-500.0,0.00013698,2]
[331150791,1720108241046,-500.0,0.00013698,2]
[331150792,1720108241055,-500.0,0.00013698,2]
[331150793,1720108241064,-505.05291359,0.00013698,2]
[331150794,1720108241074,-500.0,0.00013698,2]
[331150795,1720108241084,-500.0,0.00013698,2]
[331150796,1720108241096,-336.32526303,0.00013698,2]
[331150797,1720108241105,-500.0,0.00013698,2]
[331150798,1720108241115,-500.0,0.00013698,2]
[331150799,1720108241124,-500.0,0.00013698,2]
[331150800,1720108241133,-500.0,0.00013698,2]
[331150801,1720108241142,-500.0,0.00013698,2]
[331150802,1720108241152,-1129.56,0.00013698,2]
[331150803,1720108241161,-500.0,0.00013698,2]
[331150804,1720108241171,-500.0,0.00013698,2]
[331150805,1720108241181,-500.0,0.00013698,2]
[331150806,1720108241191,-1513.83,0.00013698,2]
[331150807,1720108241201,-500.0,0.00013698,2]
[331150808,1720108241210,-435.51741984,0.00013698,2]
[331150809,1720108241220,-500.0,0.00013698,2]
[331150810,1720108241230,-500.0,0.00013698,2]
[331150811,1720108241240,-500.0,0.00013698,2]
[331150812,1720108241254,-235.0,0.00013698,2]
[331150813,1720108241264,-500.0,0.00013698,2]
[331150814,1720108241273,-182.00095989,0.00013698,2]
[331150815,1720108241286,-493.88012096,0.00013698,2]
[331150816,1720108241296,-500.0,0.00013698,2]
[331150817,1720108241305,-500.0,0.00013698,2]
[331150818,1720108241315,-500.0,0.00013698,2]
[331150819,1720108241324,-500.0,0.00013698,2]
[331150820,1720108241333,-500.0,0.00013698,2]
[331150821,1720108241347,-500.0,0.00013698,2]
[331150822,1720108241357,-537.37123027,0.00013698,2]
[331150823,1720108241366,-500.0,0.00013698,2]
[331150824,1720108241380,-504.55048619,0.00013698,2]
[331150825,1720108241389,-500.0,0.00013698,2]
[331150826,1720108241398,-500.0,0.00013698,2]
[331150827,1720108241407,-500.0,0.00013698,2]
[331150828,1720108241416,-500.0,0.00013698,2]
[331150829,1720108241425,-500.0,0.00013698,2]
[331150830,1720108241435,-501.7906129,0.00013698,2]
[331150831,1720108241444,-500.0,0.00013698,2]
[331150832,1720108241454,-500.0,0.00013698,2]
[331150833,1720108241463,-500.0,0.00013698,2]
[331150834,1720108241473,-500.0,0.00013698,2]
[331150835,1720108241482,-505.07802294,0.00013698,2]
[331150836,1720108241491,-500.0,0.00013698,2]
[331150837,1720108241500,-500.0,0.00013698,2]
[331150838,1720108241509,-518.2131094,0.00013698,2]
[331150839,1720108241518,-500.0,0.00013698,2]
[331150840,1720108241528,-298.12313667,0.00013698,2]
[331150841,1720108241537,-500.0,0.00013698,2]
[331150842,1720108241546,-500.0,0.00013698,2]
[331150843,1720108241556,-500.0,0.00013698,2]
[331150844,1720108241565,-944.71,0.00013698,2]
[331150845,1720108241574,-503.60821617,0.00013698,2]
[331150846,1720108241584,-501.36868169,0.00013698,2]
[331150847,1720108241596,-500.0,0.00013698,2]
[331150848,1720108241606,-500.0,0.00013698,2]
[331150849,1720108241617,-500.0,0.00013698,2]
[331150850,1720108241628,-500.0,0.00013698,2]
[331150851,1720108241637,-500.0,0.00013698,2]
[331150852,1720108241646,-500.0,0.00013698,2]
[331150853,1720108241665,-500.0,0.00013698,2]
[331150854,1720108241674,-507.57568741,0.00013698,2]
[331150855,1720108241684,-591.25780219,0.00013698,2]
[331150856,1720108241695,-504.07488928,0.00013698,2]
[331150857,1720108241705,-700.66,0.00013698,2]
[331150858,1720108241715,-500.0,0.00013698,2]
[331150859,1720108241723,-500.0,0.00013698,2]
[331150860,1720108241736,-500.0,0.00013698,2]
[331150861,1720108241745,-500.0,0.00013698,2]
[331150862,1720108241754,-501.32742922,0.00013698,2]
[331150863,1720108241763,-500.0,0.00013698,2]
[331150864,1720108241773,-504.04832553,0.00013698,2]
[331150865,1720108241782,-500.0,0.00013698,2]
[331150866,1720108241791,-500.0,0.00013698,2]
[331150867,1720108241801,-501.39494377,0.00013698,2]
[331150868,1720108241810,-795.56,0.00013698,2]
[331150869,1720108241818,-509.5,0.00013698,2]
[331150870,1720108241828,-500.0,0.00013698,2]
[331150871,1720108241838,-500.0,0.00013698,2]
[331150872,1720108241850,-500.0,0.00013698,2]
[331150873,1720108241859,-4709.07,0.00013698,2]
[331150874,1720108241868,-500.0,0.00013698,2]
[331150875,1720108241878,-504.00834534,0.00013698,2]
[331150876,1720108241887,-500.0,0.00013698,2]
[331150877,1720108241896,-500.0,0.00013698,2]
[331150878,1720108241905,-504.08711633,0.00013698,2]
[331150879,1720108241915,-500.0,0.00013698,2]
[331150880,1720108241924,-500.0,0.00013698,2]
[331150881,1720108241933,-500.0,0.00013698,2]
[331150882,1720108241942,-500.0,0.00013698,2]
[331150883,1720108241951,-500.0,0.00013698,2]
[331150884,1720108241961,-500.0,0.00013698,2]
[331150885,1720108241970,-766.15,0.00013698,2]
[331150886,1720108241979,-500.0,0.00013698,2]
[331150887,1720108241990,-505.63634828,0.00013698,2]
[331150888,1720108241999,-501.66508085,0.00013698,2]
[331150889,1720108242009,-508.14063049,0.00013698,2]
[331150890,1720108242018,-504.17721381,0.00013698,2]
[331150891,1720108242027,-500.0,0.00013698,2]
[331150892,1720108242036,-422.94484845,0.00013698,2]
[331150893,1720108242046,-500.0,0.00013698,2]